[Event "Live Chess"]
[Site "Chess.com"]
[Date "2023.05.21"]
[Round "-"]
[White "elizaveta_frundina"]
[Black "ShanthamGrarks"]
[Result "0-1"]
[WhiteElo "1574"]
[BlackElo "1989"]
[TimeControl "300"]
[EndTime "2:05:53 PDT"]
[Termination "ShanthamGrarks won by resignation"]

1. e4 {[%clk 0:04:55.2]} 1... e6 {[%clk 0:04:59.1]} 2. d4 {[%clk 0:04:53.6]}
2... d5 {[%clk 0:04:58.6]} 3. Bd3 {[%clk 0:04:51.6]} 3... Nf6 {[%clk 0:04:57.4]}
4. Bg5 {[%clk 0:04:48.4]} 4... Be7 {[%clk 0:04:55.5]} 5. e5 {[%clk 0:04:41.1]}
5... Nfd7 {[%clk 0:04:54.2]} 6. Bxe7 {[%clk 0:04:35.5]} 6... Qxe7 {[%clk
0:04:54.1]} 7. Nf3 {[%clk 0:04:34]} 7... c5 {[%clk 0:04:52.5]} 8. c3 {[%clk
0:04:32.7]} 8... cxd4 {[%clk 0:04:51.6]} 9. cxd4 {[%clk 0:04:31.7]} 9... Nc6
{[%clk 0:04:51.5]} 10. O-O {[%clk 0:04:19.8]} 10... h6 {[%clk 0:04:50]} 11. Re1
{[%clk 0:04:16.5]} 11... O-O {[%clk 0:04:46.5]} 12. Nc3 {[%clk 0:04:15.2]} 12...
a6 {[%clk 0:04:43.5]} 13. a3 {[%clk 0:04:10]} 13... f5 {[%clk 0:04:40.7]} 14. g3
{[%clk 0:03:50.1]} 14... b5 {[%clk 0:04:31.3]} 15. Nh4 {[%clk 0:03:48.1]} 15...
Qf7 {[%clk 0:04:25.3]} 16. Qf3 {[%clk 0:03:33.1]} 16... g5 {[%clk 0:04:21.4]}
17. Ng2 {[%clk 0:03:25.3]} 17... Nxd4 {[%clk 0:04:20.5]} 18. Qe3 {[%clk
0:03:18]} 18... Nc6 {[%clk 0:04:15.2]} 19. f4 {[%clk 0:03:10.3]} 19... d4 {[%clk
0:04:12]} 20. Qf3 {[%clk 0:03:01.1]} 20... Bb7 {[%clk 0:04:06.9]} 21. Ne2 {[%clk
0:02:48.5]} 21... g4 {[%clk 0:04:06]} 22. Qf2 {[%clk 0:02:43.4]} 22... Ncxe5
{[%clk 0:04:01.3]} 23. fxe5 {[%clk 0:02:34.2]} 23... Nxe5 {[%clk 0:04:00.4]} 24.
Nxd4 {[%clk 0:02:31.6]} 24... Nxd3 {[%clk 0:03:58.6]} 25. Qe3 {[%clk 0:02:24.6]}
25... Nxe1 {[%clk 0:03:51.5]} 26. Rxe1 {[%clk 0:02:22.8]} 26... e5 {[%clk
0:03:41.7]} 27. Qxe5 {[%clk 0:02:01.9]} 27... Rae8 {[%clk 0:03:35.6]} 28. Qf4
{[%clk 0:01:54.5]} 28... Rxe1+ {[%clk 0:03:23.2]} 29. Nxe1 {[%clk 0:01:53.2]}
29... Qd5 {[%clk 0:03:21.9]} 30. Kf2 {[%clk 0:01:28.4]} 30... Re8 {[%clk
0:03:04.7]} 31. Nxf5 {[%clk 0:00:53.9]} 31... Qc5+ {[%clk 0:02:42.2]} 32. Kf1
{[%clk 0:00:32.4]} 32... Rf8 {[%clk 0:02:29.6]} 33. Nd3 {[%clk 0:00:15.8]} 33...
Qxf5 {[%clk 0:02:24.6]} 34. Qxf5 {[%clk 0:00:12.9]} 34... Rxf5+ {[%clk
0:02:23.5]} 0-1

[Event "Live Chess"]
[Site "Chess.com"]
[Date "2023.05.21"]
[Round "-"]
[White "whitedjohn"]
[Black "Tiltador"]
[Result "1-0"]
[WhiteElo "1641"]
[BlackElo "857"]
[TimeControl "300"]
[EndTime "2:05:57 PDT"]
[Termination "whitedjohn won by checkmate"]

1. e4 {[%clk 0:04:58.2]} 1... e5 {[%clk 0:04:58]} 2. Nf3 {[%clk 0:04:56.9]} 2...
d6 {[%clk 0:04:56.3]} 3. d4 {[%clk 0:04:55.4]} 3... f6 {[%clk 0:04:55.1]} 4.
dxe5 {[%clk 0:04:54.1]} 4... fxe5 {[%clk 0:04:53.2]} 5. Nxe5 {[%clk 0:04:52.4]}
5... dxe5 {[%clk 0:04:49.8]} 6. Qh5+ {[%clk 0:04:51.2]} 6... g6 {[%clk
0:04:42.7]} 7. Qxe5+ {[%clk 0:04:49.8]} 7... Ne7 {[%clk 0:04:39.7]} 8. Qxh8
{[%clk 0:04:48.3]} 8... Nbc6 {[%clk 0:04:38.7]} 9. Bh6 {[%clk 0:04:44.4]} 9...
Be6 {[%clk 0:04:10.5]} 10. Qxf8+ {[%clk 0:04:41.8]} 10... Kd7 {[%clk 0:04:08]}
11. Qxd8+ {[%clk 0:04:40.4]} 11... Rxd8 {[%clk 0:04:05.8]} 12. Nc3 {[%clk
0:04:38.2]} 12... Kc8 {[%clk 0:04:04.3]} 13. Bg5 {[%clk 0:04:31.7]} 13... Re8
{[%clk 0:04:01.1]} 14. Bxe7 {[%clk 0:04:30.1]} 14... Rxe7 {[%clk 0:03:59.3]} 15.
O-O-O {[%clk 0:04:28.5]} 15... Nb4 {[%clk 0:03:47.3]} 16. a3 {[%clk 0:04:25.1]}
16... Na2+ {[%clk 0:03:43.4]} 17. Nxa2 {[%clk 0:04:23.9]} 17... Bxa2 {[%clk
0:03:41.1]} 18. b3 {[%clk 0:04:20]} 18... Rxe4 {[%clk 0:03:36.1]} 19. Kb2 {[%clk
0:04:18.7]} 19... Bxb3 {[%clk 0:03:31.3]} 20. cxb3 {[%clk 0:04:17.3]} 20... Rf4
{[%clk 0:03:24.6]} 21. f3 {[%clk 0:04:15.9]} 21... h5 {[%clk 0:03:20.4]} 22. Bc4
{[%clk 0:04:14]} 22... g5 {[%clk 0:03:17.5]} 23. Be6+ {[%clk 0:04:12.6]} 23...
Kb8 {[%clk 0:03:08.3]} 24. Rd8# {[%clk 0:04:11.9]} 1-0

[Event "Live Chess"]
[Site "Chess.com"]
[Date "2023.05.21"]
[Round "-"]
[White "SupremeTactician"]
[Black "MaximKris"]
[Result "1-0"]
[WhiteElo "2269"]
[BlackElo "1801"]
[TimeControl "300"]
[EndTime "2:06:09 PDT"]
[Termination "SupremeTactician won by checkmate"]

1. e4 {[%clk 0:04:50.4]} 1... e5 {[%clk 0:04:58.8]} 2. Nf3 {[%clk 0:04:49.6]}
2... Nc6 {[%clk 0:04:57.7]} 3. Nc3 {[%clk 0:04:48.9]} 3... Nf6 {[%clk
0:04:56.7]} 4. Bb5 {[%clk 0:04:48.3]} 4... a6 {[%clk 0:04:55.4]} 5. Bxc6 {[%clk
0:04:47.4]} 5... dxc6 {[%clk 0:04:55.3]} 6. Nxe5 {[%clk 0:04:46.6]} 6... Bc5
{[%clk 0:04:54.3]} 7. O-O {[%clk 0:04:45.6]} 7... O-O {[%clk 0:04:53.9]} 8. Nf3
{[%clk 0:04:44.6]} 8... Bg4 {[%clk 0:04:52.7]} 9. h3 {[%clk 0:04:43.8]} 9... Bh5
{[%clk 0:04:51.7]} 10. d3 {[%clk 0:04:40.5]} 10... Bg6 {[%clk 0:04:50.3]} 11.
Be3 {[%clk 0:04:39.4]} 11... Bd4 {[%clk 0:04:48.7]} 12. Bxd4 {[%clk 0:04:33.1]}
12... Re8 {[%clk 0:04:47]} 13. Bxf6 {[%clk 0:04:32.3]} 13... Qxf6 {[%clk
0:04:46.9]} 14. Re1 {[%clk 0:04:30.3]} 14... Rad8 {[%clk 0:04:46.8]} 15. Qe2
{[%clk 0:04:28.9]} 15... Qe6 {[%clk 0:04:46.7]} 16. Rad1 {[%clk 0:04:27.3]}
16... Bh5 {[%clk 0:04:45.6]} 17. d4 {[%clk 0:04:21.6]} 17... f5 {[%clk
0:04:44.7]} 18. d5 {[%clk 0:04:14.9]} 18... cxd5 {[%clk 0:04:43.2]} 19. exd5
{[%clk 0:04:14.5]} 19... Qxe2 {[%clk 0:04:41.9]} 20. Rxe2 {[%clk 0:04:13.8]}
20... Rxe2 {[%clk 0:04:40.5]} 21. Nxe2 {[%clk 0:04:13.6]} 21... Bxf3 {[%clk
0:04:40]} 22. gxf3 {[%clk 0:04:13.3]} 22... Kf7 {[%clk 0:04:39.5]} 23. Nf4
{[%clk 0:04:12.1]} 23... c6 {[%clk 0:04:38.6]} 24. c4 {[%clk 0:04:10]} 24...
cxd5 {[%clk 0:04:37.5]} 25. Rxd5 {[%clk 0:04:09.5]} 25... Rxd5 {[%clk
0:04:36.6]} 26. Nxd5 {[%clk 0:04:09.2]} 26... Ke6 {[%clk 0:04:36.2]} 27. f4
{[%clk 0:04:08.4]} 27... Kd6 {[%clk 0:04:36.1]} 28. b4 {[%clk 0:04:07.6]} 28...
b5 {[%clk 0:04:34.7]} 29. Ne3 {[%clk 0:04:07.2]} 29... bxc4 {[%clk 0:04:33.9]}
30. Nxc4+ {[%clk 0:04:07]} 30... Kd5 {[%clk 0:04:33.8]} 31. Ne3+ {[%clk
0:04:04.3]} 31... Kd4 {[%clk 0:04:33.1]} 32. Nxf5+ {[%clk 0:04:03.3]} 32... Kc3
{[%clk 0:04:33]} 33. Nxg7 {[%clk 0:03:59.3]} 33... Kxb4 {[%clk 0:04:32.2]} 34.
f5 {[%clk 0:03:58.9]} 34... Ka3 {[%clk 0:04:32.1]} 35. f6 {[%clk 0:03:58.5]}
35... Kxa2 {[%clk 0:04:32]} 36. f7 {[%clk 0:03:58.3]} 36... a5 {[%clk
0:04:31.9]} 37. f8=Q {[%clk 0:03:58.1]} 37... a4 {[%clk 0:04:31.8]} 38. Ne6
{[%clk 0:03:56.8]} 38... a3 {[%clk 0:04:31.7]} 39. Nd4 {[%clk 0:03:56.3]} 39...
Kb2 {[%clk 0:04:30.6]} 40. Qb4+ {[%clk 0:03:55.5]} 40... Ka2 {[%clk 0:04:29.7]}
41. Qb3+ {[%clk 0:03:54.5]} 41... Ka1 {[%clk 0:04:29.6]} 42. Nc2# {[%clk
0:03:54.3]} 1-0

[Event "Live Chess"]
[Site "Chess.com"]
[Date "2023.05.21"]
[Round "-"]
[White "TheSmoulderingMaster"]
[Black "Mechhead7"]
[Result "1/2-1/2"]
[WhiteElo "1699"]
[BlackElo "1764"]
[TimeControl "300"]
[EndTime "2:06:11 PDT"]
[Termination "Game drawn - insufficient material"]

1. e4 {[%clk 0:04:58.8]} 1... Nf6 {[%clk 0:04:56.9]} 2. e5 {[%clk 0:04:57.9]}
2... Nd5 {[%clk 0:04:55.9]} 3. d4 {[%clk 0:04:56.5]} 3... d6 {[%clk 0:04:55.1]}
4. c4 {[%clk 0:04:54.7]} 4... Nb6 {[%clk 0:04:54.3]} 5. f4 {[%clk 0:04:53.5]}
5... g6 {[%clk 0:04:52.9]} 6. Nf3 {[%clk 0:04:52]} 6... Bg7 {[%clk 0:04:52]} 7.
Bd3 {[%clk 0:04:50.1]} 7... Bg4 {[%clk 0:04:35.4]} 8. O-O {[%clk 0:04:47.1]}
8... O-O {[%clk 0:04:34]} 9. h3 {[%clk 0:04:44.2]} 9... Be6 {[%clk 0:04:32.6]}
10. Kh1 {[%clk 0:04:39.7]} 10... Bxc4 {[%clk 0:04:27.4]} 11. Bxc4 {[%clk
0:04:37.8]} 11... Nxc4 {[%clk 0:04:26.6]} 12. e6 {[%clk 0:04:33.7]} 12... d5
{[%clk 0:04:15.9]} 13. exf7+ {[%clk 0:04:29.9]} 13... Rxf7 {[%clk 0:04:14.8]}
14. Ng5 {[%clk 0:04:29.2]} 14... Rf5 {[%clk 0:04:08.1]} 15. Qe2 {[%clk
0:04:24.5]} 15... Nc6 {[%clk 0:03:45.1]} 16. Qe6+ {[%clk 0:04:19.9]} 16... Kh8
{[%clk 0:03:32.2]} 17. Nf7+ {[%clk 0:04:16.7]} 17... Rxf7 {[%clk 0:03:31.3]} 18.
Qxf7 {[%clk 0:04:16.6]} 18... Qd6 {[%clk 0:03:22.5]} 19. Nc3 {[%clk 0:04:11.9]}
19... Nb4 {[%clk 0:03:08.9]} 20. a3 {[%clk 0:04:09.2]} 20... Nc2 {[%clk
0:03:06.9]} 21. Rb1 {[%clk 0:04:07.6]} 21... Rf8 {[%clk 0:02:39.8]} 22. Qxd5
{[%clk 0:04:03.2]} 22... Qxd5 {[%clk 0:02:39.7]} 23. Nxd5 {[%clk 0:04:02.1]}
23... Nxd4 {[%clk 0:02:33]} 24. Nxe7 {[%clk 0:03:56.8]} 24... Ne2 {[%clk
0:02:28.9]} 25. Nd5 {[%clk 0:03:47.8]} 25... Ng3+ {[%clk 0:02:27.6]} 26. Kg1
{[%clk 0:03:46.4]} 26... Nxf1 {[%clk 0:02:26.9]} 27. Kxf1 {[%clk 0:03:44.8]}
27... c6 {[%clk 0:02:22.2]} 28. Ne7 {[%clk 0:03:38.6]} 28... Rd8 {[%clk
0:02:13.4]} 29. b3 {[%clk 0:03:34]} 29... Nb6 {[%clk 0:02:05.6]} 30. Bb2 {[%clk
0:03:26.6]} 30... Bxb2 {[%clk 0:02:03.9]} 31. Rxb2 {[%clk 0:03:25.6]} 31... Rd7
{[%clk 0:01:58]} 32. Re2 {[%clk 0:03:20.2]} 32... Kg7 {[%clk 0:01:56.7]} 33. f5
{[%clk 0:03:17.1]} 33... Kf6 {[%clk 0:01:44]} 34. fxg6 {[%clk 0:03:06.4]} 34...
hxg6 {[%clk 0:01:42.6]} 35. Ng8+ {[%clk 0:03:02.9]} 35... Kg7 {[%clk 0:01:41.3]}
36. Ne7 {[%clk 0:02:57.6]} 36... Kf7 {[%clk 0:01:40]} 37. Nxg6 {[%clk
0:02:42.4]} 37... Kxg6 {[%clk 0:01:38.9]} 38. g4 {[%clk 0:02:40]} 38... Rd3
{[%clk 0:01:36.4]} 39. h4 {[%clk 0:02:37.7]} 39... Rxb3 {[%clk 0:01:35.2]} 40.
Re6+ {[%clk 0:02:36.7]} 40... Kg7 {[%clk 0:01:33.8]} 41. Re7+ {[%clk 0:02:33.5]}
41... Kf6 {[%clk 0:01:33]} 42. Rxb7 {[%clk 0:02:32.5]} 42... Rxa3 {[%clk
0:01:32.1]} 43. Rc7 {[%clk 0:02:30.5]} 43... Nd5 {[%clk 0:01:30.7]} 44. Rxc6+
{[%clk 0:02:28.9]} 44... Kg7 {[%clk 0:01:29.7]} 45. g5 {[%clk 0:02:24.5]} 45...
Ne3+ {[%clk 0:01:28.6]} 46. Ke2 {[%clk 0:02:22.8]} 46... Nf5 {[%clk 0:01:26.3]}
47. h5 {[%clk 0:02:19.8]} 47... Rg3 {[%clk 0:01:21.2]} 48. h6+ {[%clk
0:02:16.6]} 48... Kh7 {[%clk 0:01:19.8]} 49. Rc7+ {[%clk 0:02:14.7]} 49... Kg6
{[%clk 0:01:18.8]} 50. Rxa7 {[%clk 0:02:13]} 50... Kxg5 {[%clk 0:01:16.2]} 51.
h7 {[%clk 0:02:11.1]} 51... Rh3 {[%clk 0:01:15.2]} 52. Kf2 {[%clk 0:02:07.1]}
52... Kg6 {[%clk 0:01:12.6]} 53. Kg2 {[%clk 0:02:02.5]} 53... Rh5 {[%clk
0:01:08.1]} 54. Kf3 {[%clk 0:01:59.9]} 54... Ng7 {[%clk 0:01:06]} 55. Kg4 {[%clk
0:01:52.4]} 55... Kxh7 {[%clk 0:01:04.8]} 56. Rxg7+ {[%clk 0:01:48.5]} 56...
Kxg7 {[%clk 0:01:03.9]} 57. Kxh5 {[%clk 0:01:48.4]} 1/2-1/2

[Event "Live Chess"]
[Site "Chess.com"]
[Date "2023.05.21"]
[Round "-"]
[White "Singapourfeuj"]
[Black "Tushinskiy"]
[Result "1-0"]
[WhiteElo "2188"]
[BlackElo "2151"]
[TimeControl "300"]
[EndTime "2:06:12 PDT"]
[Termination "Singapourfeuj won by resignation"]

1. d4 {[%clk 0:04:58.3]} 1... d5 {[%clk 0:04:58.6]} 2. c4 {[%clk 0:04:56.7]}
2... c6 {[%clk 0:04:58.5]} 3. Nf3 {[%clk 0:04:55.4]} 3... Nf6 {[%clk 0:04:56.5]}
4. Nc3 {[%clk 0:04:54.2]} 4... e6 {[%clk 0:04:55.9]} 5. cxd5 {[%clk 0:04:52.7]}
5... exd5 {[%clk 0:04:54.9]} 6. Bg5 {[%clk 0:04:51.5]} 6... Be7 {[%clk
0:04:54.1]} 7. Qc2 {[%clk 0:04:50.4]} 7... Nbd7 {[%clk 0:04:52.3]} 8. e3 {[%clk
0:04:49.6]} 8... O-O {[%clk 0:04:51.5]} 9. Bd3 {[%clk 0:04:48.7]} 9... Re8
{[%clk 0:04:50.9]} 10. O-O {[%clk 0:04:47.5]} 10... Nf8 {[%clk 0:04:50.3]} 11.
Rae1 {[%clk 0:04:45.9]} 11... Bg4 {[%clk 0:04:48.4]} 12. Ne5 {[%clk 0:04:44]}
12... Bh5 {[%clk 0:04:47.1]} 13. f4 {[%clk 0:04:41.1]} 13... h6 {[%clk
0:04:45.3]} 14. Bh4 {[%clk 0:04:38.4]} 14... Rc8 {[%clk 0:04:37.7]} 15. h3
{[%clk 0:04:36.8]} 15... c5 {[%clk 0:04:34.7]} 16. Bf5 {[%clk 0:04:27.5]} 16...
Rb8 {[%clk 0:04:31.3]} 17. g4 {[%clk 0:04:25.5]} 17... cxd4 {[%clk 0:04:27.9]}
18. exd4 {[%clk 0:04:23.6]} 18... Bg6 {[%clk 0:04:26.5]} 19. Nxg6 {[%clk
0:04:19.2]} 19... fxg6 {[%clk 0:04:25.2]} 20. Bxg6 {[%clk 0:04:17.5]} 20... Nxg6
{[%clk 0:04:24.3]} 21. Qxg6 {[%clk 0:04:16.2]} 21... Qb6 {[%clk 0:04:23.5]} 22.
Rxe7 {[%clk 0:03:56.9]} 22... Rxe7 {[%clk 0:04:20.4]} 23. Bxf6 {[%clk
0:03:55.4]} 23... Qxf6 {[%clk 0:04:15.9]} 24. Qxf6 {[%clk 0:03:52.7]} 24... gxf6
{[%clk 0:04:15.8]} 25. Nxd5 {[%clk 0:03:51.7]} 25... Re2 {[%clk 0:04:12.8]} 26.
Nxf6+ {[%clk 0:03:49]} 26... Kf7 {[%clk 0:04:11.6]} 27. g5 {[%clk 0:03:47]}
27... Rc8 {[%clk 0:04:06.2]} 28. Rf2 {[%clk 0:03:39.1]} 28... Rc1+ {[%clk
0:04:03.6]} 29. Kg2 {[%clk 0:03:38.1]} 29... Rcc2 {[%clk 0:04:02.9]} 30. Rxe2
{[%clk 0:03:36.4]} 30... Rxe2+ {[%clk 0:04:02.8]} 31. Kf3 {[%clk 0:03:35.3]}
31... Rxb2 {[%clk 0:04:02.7]} 32. h4 {[%clk 0:03:34]} 32... Rxa2 {[%clk
0:04:01.1]} 33. f5 {[%clk 0:03:33.2]} 33... Rh2 {[%clk 0:03:52.4]} 34. Kg3
{[%clk 0:03:31.8]} 34... Rd2 {[%clk 0:03:50.8]} 35. d5 {[%clk 0:03:29.7]} 35...
a5 {[%clk 0:03:48.2]} 36. Kf4 {[%clk 0:03:28.7]} 36... Rd4+ {[%clk 0:03:43.8]}
37. Ke5 {[%clk 0:03:26.6]} 37... Rxh4 {[%clk 0:03:39.2]} 38. g6+ {[%clk
0:03:25.7]} 38... Kf8 {[%clk 0:03:30.9]} 39. d6 {[%clk 0:03:23.8]} 39... Rh1
{[%clk 0:03:28.3]} 40. d7 {[%clk 0:03:21.9]} 40... Rd1 {[%clk 0:03:26.9]} 41.
Nd5 {[%clk 0:03:17.2]} 41... Rxd5+ {[%clk 0:03:20.1]} 42. Kxd5 {[%clk
0:03:14.4]} 42... Ke7 {[%clk 0:03:20]} 43. g7 {[%clk 0:03:13.5]} 1-0

[Event "Live Chess"]
[Site "Chess.com"]
[Date "2023.05.21"]
[Round "-"]
[White "LanceMaster23"]
[Black "OceanFloater"]
[Result "1-0"]
[WhiteElo "1946"]
[BlackElo "1026"]
[TimeControl "300"]
[EndTime "2:06:47 PDT"]
[Termination "LanceMaster23 won by resignation"]

1. Nf3 {[%clk 0:04:57.9]} 1... c6 {[%clk 0:04:59.6]} 2. d4 {[%clk 0:04:57.2]}
2... d5 {[%clk 0:04:58.1]} 3. Bf4 {[%clk 0:04:56.5]} 3... Bf5 {[%clk 0:04:54]}
4. e3 {[%clk 0:04:55.7]} 4... e6 {[%clk 0:04:52.7]} 5. Be2 {[%clk 0:04:55.1]}
5... c5 {[%clk 0:04:49.9]} 6. c3 {[%clk 0:04:54]} 6... c4 {[%clk 0:04:47.2]} 7.
O-O {[%clk 0:04:52.3]} 7... Nc6 {[%clk 0:04:44.5]} 8. Nbd2 {[%clk 0:04:51.5]}
8... Nf6 {[%clk 0:04:43.6]} 9. Re1 {[%clk 0:04:50.4]} 9... Bd6 {[%clk
0:04:38.8]} 10. Bg3 {[%clk 0:04:49.3]} 10... Bxg3 {[%clk 0:04:36.7]} 11. hxg3
{[%clk 0:04:48.4]} 11... Ne4 {[%clk 0:04:36.3]} 12. Nxe4 {[%clk 0:04:46.9]}
12... Bxe4 {[%clk 0:04:34.7]} 13. Nd2 {[%clk 0:04:46.3]} 13... Bg6 {[%clk
0:04:30.7]} 14. e4 {[%clk 0:04:45.4]} 14... O-O {[%clk 0:04:26.6]} 15. Bf3
{[%clk 0:04:43.6]} 15... Re8 {[%clk 0:04:22.7]} 16. exd5 {[%clk 0:04:41]} 16...
exd5 {[%clk 0:04:20.7]} 17. Rxe8+ {[%clk 0:04:40.9]} 17... Qxe8 {[%clk
0:04:19.3]} 18. Bxd5 {[%clk 0:04:40.4]} 18... Rd8 {[%clk 0:04:10.7]} 19. Bxc4
{[%clk 0:04:38]} 19... Qd7 {[%clk 0:04:00.2]} 20. Nf3 {[%clk 0:04:36.4]} 20...
Ne7 {[%clk 0:03:55.8]} 21. Bd3 {[%clk 0:04:34.3]} 21... Nf5 {[%clk 0:03:53.7]}
22. Ne5 {[%clk 0:04:30.5]} 22... Qd6 {[%clk 0:03:51.5]} 23. Nxg6 {[%clk
0:04:29]} 23... Qxg6 {[%clk 0:03:49.8]} 24. Qf3 {[%clk 0:04:26.2]} 24... b6
{[%clk 0:03:45.4]} 25. Qxf5 {[%clk 0:04:24.7]} 25... Qxf5 {[%clk 0:03:44.5]} 26.
Bxf5 {[%clk 0:04:24.6]} 26... Rd5 {[%clk 0:03:43.2]} 27. Re1 {[%clk 0:04:22.5]}
27... g6 {[%clk 0:03:41]} 28. Bd3 {[%clk 0:04:21.2]} 28... Kg7 {[%clk
0:03:37.6]} 29. Re7 {[%clk 0:04:20.3]} 29... a6 {[%clk 0:03:29.4]} 30. Bxa6
{[%clk 0:04:19]} 30... Ra5 {[%clk 0:03:26.4]} 31. Bc4 {[%clk 0:04:18.3]} 31...
b5 {[%clk 0:03:23.6]} 32. Bxf7 {[%clk 0:04:17.4]} 32... Kh6 {[%clk 0:03:19.7]}
33. b4 {[%clk 0:04:14.8]} 1-0

[Event "Live Chess"]
[Site "Chess.com"]
[Date "2023.05.21"]
[Round "-"]
[White "ranvir123"]
[Black "hturner40"]
[Result "0-1"]
[WhiteElo "920"]
[BlackElo "1783"]
[TimeControl "300"]
[EndTime "2:06:53 PDT"]
[Termination "hturner40 won by checkmate"]

1. e4 {[%clk 0:04:58.1]} 1... Nc6 {[%clk 0:04:58.1]} 2. Nf3 {[%clk 0:04:52.4]}
2... e5 {[%clk 0:04:56.6]} 3. Bc4 {[%clk 0:04:49.6]} 3... Nf6 {[%clk 0:04:54.6]}
4. Ng5 {[%clk 0:04:48.2]} 4... d5 {[%clk 0:04:52.6]} 5. exd5 {[%clk 0:04:46.8]}
5... b5 {[%clk 0:04:49.4]} 6. Bxb5 {[%clk 0:04:29.4]} 6... Qxd5 {[%clk
0:04:47.3]} 7. Bxc6+ {[%clk 0:04:25.1]} 7... Qxc6 {[%clk 0:04:45.3]} 8. Qf3
{[%clk 0:04:20.8]} 8... e4 {[%clk 0:04:41.3]} 9. Qb3 {[%clk 0:04:07.9]} 9... Be6
{[%clk 0:04:14.1]} 10. Nxe6 {[%clk 0:04:04.2]} 10... fxe6 {[%clk 0:04:13.1]} 11.
O-O {[%clk 0:03:56.7]} 11... Bc5 {[%clk 0:04:09.3]} 12. d3 {[%clk 0:03:44.3]}
12... O-O {[%clk 0:04:00.3]} 13. Bg5 {[%clk 0:03:39.1]} 13... Ng4 {[%clk
0:03:54.6]} 14. h3 {[%clk 0:03:19.7]} 14... Bxf2+ {[%clk 0:02:56]} 15. Kh1
{[%clk 0:03:07.1]} 15... Bg3 {[%clk 0:02:53.5]} 16. Rxf8+ {[%clk 0:03:01]} 16...
Rxf8 {[%clk 0:02:51.3]} 17. Nc3 {[%clk 0:02:57.8]} 17... Nf2+ {[%clk 0:02:32.8]}
18. Kg1 {[%clk 0:02:54.2]} 18... exd3 {[%clk 0:02:29.2]} 19. cxd3 {[%clk
0:02:50.6]} 19... Nxh3+ {[%clk 0:01:46.3]} 20. gxh3 {[%clk 0:02:45.6]} 20... Qf3
{[%clk 0:01:44.9]} 21. Qd1 {[%clk 0:02:28.6]} 21... Qf2+ {[%clk 0:01:41.3]} 22.
Kh1 {[%clk 0:02:27]} 22... Qh2# {[%clk 0:01:40.2]} 0-1

[Event "Live Chess"]
[Site "Chess.com"]
[Date "2023.05.21"]
[Round "-"]
[White "OleksiyJr1"]
[Black "Singapourfeuj"]
[Result "0-1"]
[WhiteElo "965"]
[BlackElo "2188"]
[TimeControl "300"]
[EndTime "2:06:53 PDT"]
[Termination "Singapourfeuj won by resignation"]

1. e4 {[%clk 0:04:58.7]} 1... c5 {[%clk 0:04:58.8]} 2. Nf3 {[%clk 0:04:58.2]}
2... d6 {[%clk 0:04:57.9]} 3. Bc4 {[%clk 0:04:57.9]} 3... e6 {[%clk 0:04:56.6]}
4. Nc3 {[%clk 0:04:57.8]} 4... a6 {[%clk 0:04:55.6]} 5. d4 {[%clk 0:04:57.7]}
5... b5 {[%clk 0:04:54.6]} 6. Bd3 {[%clk 0:04:56]} 6... cxd4 {[%clk 0:04:53.7]}
7. Nxd4 {[%clk 0:04:55.9]} 7... Nf6 {[%clk 0:04:52.8]} 8. Bg5 {[%clk 0:04:52.2]}
8... Be7 {[%clk 0:04:51.6]} 9. Bxf6 {[%clk 0:04:51.2]} 9... Bxf6 {[%clk
0:04:50.6]} 10. O-O {[%clk 0:04:51.1]} 10... Bxd4 {[%clk 0:04:48.4]} 11. g3
{[%clk 0:04:49.9]} 0-1

[Event "Live Chess"]
[Site "Chess.com"]
[Date "2023.05.21"]
[Round "-"]
[White "Leonid_Starozhilov"]
[Black "gmnorfolk"]
[Result "1/2-1/2"]
[WhiteElo "2632"]
[BlackElo "2116"]
[TimeControl "300"]
[EndTime "2:07:05 PDT"]
[Termination "Game drawn by agreement"]

1. b3 {[%clk 0:04:58.7]} 1... e5 {[%clk 0:04:57.3]} 2. Bb2 {[%clk 0:04:58.6]}
2... Nc6 {[%clk 0:04:55.9]} 3. e3 {[%clk 0:04:56.9]} 3... Nf6 {[%clk 0:04:55]}
4. Bb5 {[%clk 0:04:53.8]} 4... e4 {[%clk 0:04:52.8]} 5. d3 {[%clk 0:04:51.9]}
5... a6 {[%clk 0:04:48.8]} 6. Bxc6 {[%clk 0:04:49.8]} 6... dxc6 {[%clk
0:04:47.7]} 7. Nc3 {[%clk 0:04:48.7]} 7... Bf5 {[%clk 0:04:40.5]} 8. dxe4 {[%clk
0:04:40.9]} 8... Nxe4 {[%clk 0:04:37.2]} 9. Nge2 {[%clk 0:04:22.4]} 9... Bb4
{[%clk 0:04:06.4]} 10. O-O {[%clk 0:03:45.6]} 10... Qxd1 {[%clk 0:03:57.5]} 11.
Rfxd1 {[%clk 0:03:35.4]} 11... Nxc3 {[%clk 0:03:53.7]} 12. Bxc3 {[%clk
0:03:33.2]} 12... Bxc3 {[%clk 0:03:52.1]} 13. Nxc3 {[%clk 0:03:33.1]} 13... Bxc2
{[%clk 0:03:50.5]} 14. Rd4 {[%clk 0:03:31.4]} 14... Bf5 {[%clk 0:03:46.8]} 15.
e4 {[%clk 0:03:29.3]} 15... Be6 {[%clk 0:03:43.8]} 16. f4 {[%clk 0:03:28.2]}
16... f6 {[%clk 0:03:42.7]} 17. Rad1 {[%clk 0:03:17.6]} 17... O-O {[%clk
0:03:27.9]} 18. Kf2 {[%clk 0:03:16.2]} 18... c5 {[%clk 0:03:17.8]} 19. R4d2
{[%clk 0:03:14.3]} 19... b5 {[%clk 0:03:04.9]} 20. Ke3 {[%clk 0:03:10.8]} 20...
c4 {[%clk 0:03:01.2]} 21. b4 {[%clk 0:02:55.4]} 21... Rfb8 {[%clk 0:02:49.8]}
22. f5 {[%clk 0:02:52]} 22... Bf7 {[%clk 0:02:48]} 23. Rd7 {[%clk 0:02:50.8]}
23... a5 {[%clk 0:02:44.2]} 24. bxa5 {[%clk 0:02:39]} 24... b4 {[%clk
0:02:39.3]} 25. Nd5 {[%clk 0:02:37.9]} 25... Rxa5 {[%clk 0:02:26]} 26. Nxc7
{[%clk 0:02:36.7]} 26... Ra3+ {[%clk 0:02:15]} 27. Kf4 {[%clk 0:02:26.8]} 27...
g5+ {[%clk 0:02:07.6]} 28. fxg6 {[%clk 0:02:22.9]} 28... hxg6 {[%clk 0:02:02.6]}
29. Nd5 {[%clk 0:02:11.6]} 29... Bxd5 {[%clk 0:01:55]} 30. R1xd5 {[%clk
0:02:11.5]} 30... b3 {[%clk 0:01:40.4]} 31. axb3 {[%clk 0:02:08.9]} 31... cxb3
{[%clk 0:01:27.5]} 32. Rc5 {[%clk 0:02:07.5]} 32... b2 {[%clk 0:01:19.1]} 33.
Rcc7 {[%clk 0:02:06]} 33... b1=Q {[%clk 0:01:13.9]} 34. Rg7+ {[%clk 0:02:04.4]}
34... Kf8 {[%clk 0:01:12.1]} 35. Rgf7+ {[%clk 0:02:02.9]} 35... Kg8 {[%clk
0:01:09.7]} 36. Rg7+ {[%clk 0:02:02]} 36... Kf8 {[%clk 0:01:09]} 37. Rgf7+
{[%clk 0:02:01.5]} 1/2-1/2